bitfinex/quotes_BTCUSD_20250428
["timestamp","ask_amount","ask_price","bid_price","bid_amount"]
[1745802016547,0.628931,93517.0,93516.0,0.10689014]
[1745802016921,0.628931,93517.0,93516.0,0.11511621]
[1745802017334,0.488587,93517.0,93516.0,0.11511621]
[1745802017537,0.34,93517.0,93516.0,0.11511621]
[1745802017714,0.5323,93517.0,93516.0,0.11511621]
[1745802018373,0.507788,93517.0,93516.0,0.11511621]
[1745802018575,0.507788,93517.0,93516.0,0.17835706]
[1745802018576,0.34,93517.0,93516.0,0.17835706]
[1745802018874,0.34,93517.0,93516.0,0.30077457]
[1745802021486,0.19030182,93550.0,93517.0,0.06174085]
[1745802021686,0.177984,93532.0,93519.0,0.01454085]
[1745802021895,0.34,93529.0,93520.0,0.00213817]
[1745802022063,0.34,93527.0,93519.0,0.10902847]
[1745802022268,0.34,93525.0,93520.0,0.00213835]
[1745802022465,1.277077,93524.0,93519.0,0.21013014]
[1745802022875,0.864227,93524.0,93519.0,0.21013014]
[1745802023185,0.801391,93524.0,93519.0,0.10689014]
[1745802023524,0.801386,93524.0,93519.0,0.21013014]
[1745802023650,0.83708,93524.0,93519.0,0.21013014]
[1745802023852,0.795977,93524.0,93519.0,0.21013014]
[1745802024214,0.797384,93524.0,93519.0,0.21013014]
[1745802024846,0.746364,93524.0,93519.0,0.21013014]
[1745802025047,0.821814,93523.0,93519.0,0.21013014]
[1745802025227,0.487587,93522.0,93519.0,0.21013014]
[1745802025423,0.822321,93524.0,93520.0,0.12241751]
[1745802025677,0.781057,93524.0,93520.0,0.12241751]
[1745802025883,0.369025,93523.0,93520.0,0.12241751]
[1745802026014,0.602282,93524.0,93520.0,0.12241751]
[1745802026408,0.551719,93524.0,93520.0,0.12241751]
[1745802026582,0.01999969,93523.0,93520.0,0.12241751]
[1745802026754,0.01999969,93522.0,93521.0,0.00213832]
[1745802027163,0.01999969,93529.0,93520.0,0.12455585]
[1745802027361,0.34,93528.0,93520.0,0.12455585]
[1745802027664,0.34,93526.0,93520.0,0.12455585]
[1745802027990,0.558891,93525.0,93520.0,0.12241751]
[1745802028214,0.01999969,93524.0,93520.0,0.12241751]
[1745802028351,1.513158,93523.0,93520.0,0.12241751]
[1745802028696,0.34,93526.0,93520.0,0.22565751]
[1745802028697,0.89510069,93522.0,93520.0,0.22565751]
[1745802028893,0.771055,93521.0,93520.0,0.22565751]
[1745802029095,0.79105469,93521.0,93520.0,0.22565751]
[1745802029255,0.87614869,93521.0,93520.0,0.22565751]
[1745802029657,0.40308369,93521.0,93520.0,0.22565751]
[1745802031058,0.20699869,93521.0,93520.0,0.22565751]
[1745802031264,0.01999969,93521.0,93520.0,0.22565751]
[1745802032012,0.01999969,93532.0,93520.0,0.22565751]
[1745802032212,0.34,93531.0,93521.0,0.0021383]
[1745802032428,0.35999969,93531.0,93521.0,0.0021383]
[1745802032624,0.34,93529.0,93521.0,0.0021383]
[1745802032830,0.34,93527.0,93521.0,0.0021383]
[1745802033145,0.34,93525.0,93520.0,0.22565751]
[1745802033546,0.45871169,93524.0,93521.0,0.12356937]
[1745802033749,0.01999969,93524.0,93521.0,0.17226937]
[1745802034095,0.01999969,93524.0,93522.0,0.0476]
[1745802034248,0.01999969,93524.0,93523.0,0.12356931]
[1745802034651,0.01999969,93532.0,93523.0,0.12356931]
[1745802034851,0.34,93531.0,93524.0,0.10324]
[1745802035050,0.34,93531.0,93525.0,0.10902836]
[1745802035256,0.01999969,93530.0,93525.0,0.10902836]
[1745802035828,0.34,93531.0,93525.0,0.10902836]
[1745802036949,0.01999969,93531.0,93526.0,0.13695836]
[1745802037169,0.00013753,93533.0,93530.0,0.01454085]
[1745802037369,0.00013753,93533.0,93532.0,0.01454085]
[1745802037570,0.00013753,93533.0,93532.0,0.17073099]
[1745802037771,0.00013753,93533.0,93532.0,0.3400485]
[1745802039811,0.0008488,93549.0,93542.0,0.01454085]
[1745802040015,0.00090788,93549.0,93544.0,0.01454085]
[1745802040223,0.00090788,93549.0,93546.0,0.01454085]
[1745802040405,0.00090788,93549.0,93548.0,0.01454085]
[1745802040602,0.00090788,93549.0,93548.0,0.12143099]
[1745802042123,0.00090788,93549.0,93548.0,0.12356833]
[1745802043203,0.00090788,93549.0,93548.0,0.24584831]
[1745802043346,0.00090788,93549.0,93548.0,0.24371097]
[1745802049440,0.00071547,93549.0,93548.0,0.24371097]
[1745802059846,0.00071547,93549.0,93548.0,0.34671097]
[1745802060655,0.01995349,93556.0,93554.0,0.01454085]
[1745802060922,0.01995349,93556.0,93554.0,0.12356848]
[1745802062995,0.02080189,93555.0,93554.0,0.12356848]
[1745802064686,0.02080189,93555.0,93554.0,0.22656848]
[1745802064903,0.02080189,93555.0,93554.0,0.22443099]
[1745802066505,0.02080189,93555.0,93554.0,0.3459955]
[1745802068425,0.62913189,93555.0,93554.0,0.33145465]
[1745802068632,1.27750889,93555.0,93554.0,0.33145465]
[1745802068829,1.24155189,93555.0,93554.0,0.33145465]
[1745802069438,0.32544089,93555.0,93554.0,0.33145465]
[1745802069636,0.22977589,93555.0,93554.0,0.3376103]
[1745802069846,0.02080189,93555.0,93554.0,0.33145465]
[1745802070423,0.03082269,93555.0,93554.0,0.33145465]
[1745802070602,0.20886669,93555.0,93554.0,0.33145465]
[1745802071363,0.19884589,93555.0,93554.0,0.33145465]
[1745802072806,0.19884589,93555.0,93554.0,0.12156451]
[1745802073074,0.58774589,93555.0,93554.0,0.12156451]
[1745802073281,0.65178994,93555.0,93554.0,0.12156451]
[1745802073492,0.048,93553.0,93544.0,0.1028]
[1745802073700,0.34,93554.0,93544.0,0.1028]
[1745802073701,0.048,93550.0,93544.0,0.1028]
[1745802073867,0.34,93548.0,93544.0,0.1028]
[1745802074047,0.048,93545.0,93544.0,0.1028]
[1745802074254,5.123947,93545.0,93544.0,0.1028]
[1745802074458,5.033433,93545.0,93544.0,0.1028]
[1745802074655,4.99077946,93545.0,93544.0,0.1028]
[1745802075859,4.89467046,93545.0,93544.0,0.1028]
[1745802076296,4.75117546,93545.0,93544.0,0.1028]
[1745802076504,4.69702046,93545.0,93544.0,0.1028]
[1745802077442,4.48533646,93545.0,93544.0,0.1028]
[1745802077650,4.47532949,93545.0,93544.0,0.1028]
[1745802080062,4.47532949,93545.0,93544.0,0.0885]
[1745802082354,4.47532949,93545.0,93532.0,0.049]
[1745802082355,0.65910249,93545.0,93532.0,0.049]
[1745802082566,0.19030182,93542.0,93539.0,0.10284]
[1745802082759,1.781627,93541.0,93539.0,0.10284]
[1745802082961,1.781627,93541.0,93531.0,0.00814658]
[1745802082962,0.0461,93539.0,93531.0,0.00814658]
[1745802083154,0.34,93537.0,93531.0,0.11098658]
[1745802083359,0.34,93535.0,93530.0,0.22440451]
[1745802083532,0.34,93533.0,93530.0,0.22440451]
[1745802083735,2.217499,93532.0,93530.0,0.22440451]
[1745802083946,2.20476949,93532.0,93530.0,0.22440451]
[1745802084143,2.183676,93531.0,93530.0,0.22440451]
[1745802084343,2.20362949,93531.0,93530.0,0.22440451]
[1745802084522,2.19830149,93531.0,93530.0,0.22440451]
[1745802084727,2.15427949,93531.0,93530.0,0.22440451]
[1745802085707,2.16483572,93531.0,93530.0,0.22440451]
[1745802085988,2.16483572,93531.0,93530.0,0.2323596]
[1745802087030,1.30634772,93531.0,93530.0,0.2323596]
[1745802087231,0.03050972,93531.0,93530.0,0.2323596]
[1745802087472,1.05786772,93531.0,93530.0,0.2323596]
[1745802087646,1.06754772,93531.0,93530.0,0.2323596]
[1745802089545,1.56290249,93531.0,93530.0,0.12156451]
[1745802090121,1.5728616,93531.0,93530.0,0.12156451]
[1745802090321,1.5728616,93531.0,93529.0,5.908e-05]
[1745802090322,0.3886,93530.0,93529.0,5.908e-05]
[1745802090474,4.39821355,93530.0,93529.0,5.908e-05]
[1745802090672,4.39821355,93530.0,93512.0,0.12156451]
[1745802090673,0.0486,93529.0,93512.0,0.12156451]
[1745802090896,0.34,93521.0,93512.0,0.12170204]
[1745802091116,0.34,93519.0,93512.0,0.12170204]
[1745802091321,0.34,93517.0,93512.0,0.12170204]
[1745802091547,0.34,93515.0,93512.0,0.12170204]
[1745802091731,1.40931552,93514.0,93512.0,0.12170204]
[1745802091963,1.89032141,93513.0,93512.0,0.12170204]
[1745802092105,2.64958341,93513.0,93512.0,0.12170204]
[1745802092314,2.54155441,93513.0,93512.0,0.12170204]
[1745802092519,2.21450741,93513.0,93512.0,0.12170204]
[1745802092732,2.2244786,93513.0,93512.0,0.12170204]
[1745802093175,2.26604019,93513.0,93512.0,0.12170204]
[1745802093331,2.2244786,93513.0,93512.0,0.12170204]
[1745802095167,2.2742786,93513.0,93512.0,0.12170204]
[1745802095368,2.3234786,93513.0,93512.0,0.12170204]
[1745802095568,2.6634786,93513.0,93512.0,0.12170204]
[1745802095909,2.77036874,93513.0,93512.0,0.12170204]
[1745802096320,2.6634786,93513.0,93512.0,0.12170204]
[1745802099699,2.77036874,93513.0,93512.0,0.12170204]
[1745802100531,2.77036874,93513.0,93512.0,0.00013753]
[1745802100731,0.57580274,93513.0,93512.0,0.00013753]
[1745802102114,0.0946,93511.0,93506.0,1e-08]
[1745802102325,0.0463,93508.0,93506.0,1e-08]
[1745802102532,3.85512776,93507.0,93506.0,1e-08]
[1745802102734,0.51313155,93507.0,93506.0,1e-08]
[1745802102935,0.51413155,93507.0,93506.0,1e-08]
[1745802103213,0.57712985,93507.0,93506.0,1e-08]
[1745802103359,0.58710104,93507.0,93493.0,0.0004245]
[1745802103561,0.046,93505.0,93493.0,0.0004245]
[1745802103768,0.046,93502.0,93493.0,0.0004245]
[1745802103965,0.34,93500.0,93493.0,0.0004245]
[1745802104179,5.27071474,93500.0,93493.0,0.0004245]
[1745802104360,4.49819355,93500.0,93493.0,0.0004245]
[1745802104564,4.50816474,93500.0,93493.0,0.0004245]
[1745802104993,4.22451774,93500.0,93493.0,0.0004245]
[1745802105400,3.75452574,93500.0,93493.0,0.0004245]
[1745802105541,3.86141588,93500.0,93493.0,0.0004245]
[1745802106130,3.75452574,93500.0,93493.0,0.0004245]
[1745802107219,3.27990774,93500.0,93493.0,0.0004245]
[1745802109459,3.28090774,93500.0,93493.0,0.0004245]
[1745802109671,0.34,93498.0,93493.0,0.0004245]
[1745802109869,0.34,93496.0,93493.0,0.0004245]
[1745802110088,3.28876528,93496.0,93493.0,0.0004245]
[1745802110330,3.25264469,93496.0,93493.0,0.0004245]
[1745802110496,3.26261588,93496.0,93493.0,0.0004245]
[1745802110838,3.15572574,93496.0,93493.0,0.0004245]
[1745802111039,2.9780366,93496.0,93493.0,0.0004245]
[1745802111438,0.0299126,93496.0,93493.0,0.0004245]
[1745802111648,0.3699126,93496.0,93493.0,0.0004245]
[1745802112047,4.6202696,93496.0,93495.0,0.0014241]
[1745802112213,4.74534774,93496.0,93495.0,0.0004241]
[1745802112614,4.6414576,93496.0,93495.0,0.0014241]
[1745802112866,2.7724956,93496.0,93495.0,0.0014241]
[1745802113015,1.7430886,93496.0,93495.0,0.0014241]
[1745802114609,1.73311741,93496.0,93495.0,0.0014241]
[1745802115084,1.75079443,93496.0,93495.0,0.0014241]
[1745802115568,1.73311741,93496.0,93495.0,0.0014241]
[1745802115744,1.45225341,93496.0,93495.0,0.0014241]
[1745802117339,0.59108341,93496.0,93495.0,0.0488241]
[1745802118375,0.58808341,93496.0,93495.0,0.0478241]
[1745802118781,0.58908341,93496.0,93495.0,0.0498241]
[1745802120904,0.58908341,93496.0,93495.0,0.2928196]
[1745802121197,0.02094141,93496.0,93495.0,0.2928196]
[1745802121467,0.02094141,93496.0,93495.0,0.3432196]
[1745802122002,0.001,93496.0,93495.0,0.3432196]
[1745802122417,0.001,93507.0,93495.0,0.3432196]
[1745802122418,0.01994141,93505.0,93500.0,0.06234085]
[1745802122613,0.01994141,93505.0,93504.0,0.10784085]
[1745802122823,0.01994141,93505.0,93504.0,0.21473099]
[1745802123021,0.001,93507.0,93505.0,0.22843315]
[1745802123260,0.001,93507.0,93506.0,0.21686915]
[1745802123490,0.001,93507.0,93506.0,0.21473099]
[1745802123672,0.0008486,93544.0,93506.0,0.21473099]
[1745802123804,0.00013809,93544.0,93528.0,0.01454085]
[1745802124006,0.104116,93543.0,93530.0,0.01454085]
[1745802124209,0.104116,93543.0,93532.0,0.01454085]
[1745802124435,0.00013809,93544.0,93534.0,0.01454085]
[1745802124615,0.34,93542.0,93536.0,0.01454085]
[1745802124851,0.34,93542.0,93538.0,0.01454085]
[1745802125018,0.00013809,93544.0,93540.0,0.01454085]
[1745802125212,0.001,93543.0,93542.0,0.01454085]
[1745802125424,0.001,93543.0,93542.0,0.12143099]
[1745802125822,0.001,93543.0,93542.0,0.22995099]
[1745802126223,0.00013809,93544.0,93542.0,0.22995099]
[1745802126474,0.00013809,93544.0,93543.0,0.1235687]
[1745802128301,0.00013809,93544.0,93543.0,0.13163564]
[1745802128503,0.00013809,93544.0,93543.0,0.13263564]
[1745802129552,0.00013809,93544.0,93543.0,0.13049793]
[1745802129755,0.00013809,93544.0,93543.0,0.25520003]
[1745802129961,0.00013809,93544.0,93543.0,0.25306244]
[1745802130728,0.60653109,93544.0,93543.0,0.25921809]
[1745802130936,1.11130209,93544.0,93543.0,0.25306244]
[1745802131138,1.04441909,93544.0,93543.0,0.35858244]
[1745802131340,1.01598609,93544.0,93543.0,0.25006244]
[1745802131545,1.01698609,93544.0,93543.0,0.36258244]
[1745802131771,1.01598609,93544.0,93543.0,0.3506669]
[1745802131947,1.01598609,93544.0,93543.0,0.23023591]
[1745802132355,1.01598609,93544.0,93543.0,0.22923591]
[1745802132524,1.01598609,93544.0,93543.0,0.12071591]
[1745802132725,1.01598609,93544.0,93543.0,0.12371591]
[1745802132726,1.35698609,93544.0,93543.0,0.12371591]
[1745802133093,1.29894509,93544.0,93543.0,0.12371591]
[1745802133295,1.25614509,93544.0,93543.0,0.12071591]
[1745802133905,1.24015809,93544.0,93543.0,0.12071591]
[1745802134208,1.21420109,93544.0,93543.0,0.12071591]
[1745802135301,1.21420109,93544.0,93543.0,0.12171591]
[1745802135966,1.29637509,93544.0,93543.0,0.12171591]
[1745802139027,1.40326523,93544.0,93543.0,0.12171591]
[1745802139229,1.29637509,93544.0,93543.0,0.12171591]
[1745802139459,1.29737509,93544.0,93543.0,0.12171591]
[1745802139785,1.29737509,93544.0,93543.0,0.0011514]
[1745802140927,1.45046523,93544.0,93543.0,0.0001514]
[1745802141337,1.45446523,93544.0,93543.0,0.0011514]
[1745802141986,1.29737509,93544.0,93543.0,0.0001514]
[1745802142206,1.17142809,93544.0,93543.0,0.12071591]
[1745802142407,0.35602209,93544.0,93543.0,0.12171591]
[1745802142701,0.63952209,93544.0,93543.0,0.12071591]
[1745802142903,0.11148509,93544.0,93543.0,0.2431469]
[1745802143102,0.00513809,93544.0,93543.0,0.2431469]
[1745802144249,0.00113809,93544.0,93543.0,0.2421469]
[1745802144451,0.00213809,93544.0,93543.0,0.25299646]
[1745802144880,0.00113809,93544.0,93543.0,0.24999646]
[1745802145085,0.00213809,93544.0,93543.0,0.25299646]
[1745802145519,0.00213809,93544.0,93543.0,0.12371591]
[1745802145891,0.34213809,93544.0,93543.0,0.12371591]
[1745802146478,1.77860009,93544.0,93543.0,0.12371591]
[1745802147068,1.55423909,93544.0,93543.0,0.12371591]
[1745802147269,1.16294709,93544.0,93543.0,0.12071591]
[1745802147736,0.79535809,93544.0,93543.0,0.2431469]
[1745802147909,0.79535809,93544.0,93543.0,0.2421469]
[1745802148284,0.79535809,93544.0,93543.0,0.2431469]
[1745802148604,0.68271209,93544.0,93543.0,0.2431469]
[1745802151281,1.19606209,93544.0,93543.0,0.2431469]
[1745802151486,0.73148009,93544.0,93543.0,0.2431469]
[1745802152269,0.68092509,93544.0,93543.0,0.2431469]
[1745802152674,0.68092509,93544.0,93543.0,0.3529469]
[1745802152896,0.60588609,93544.0,93543.0,0.3529469]
[1745802153334,0.00113809,93544.0,93543.0,0.3529469]
[1745802156085,0.75521909,93544.0,93543.0,0.3529469]
[1745802156291,1.33469509,93544.0,93543.0,0.23151591]
[1745802156405,1.82469509,93544.0,93543.0,0.12171591]
[1745802156600,2.04760209,93544.0,93543.0,0.12171591]
[1745802157274,1.97360209,93544.0,93543.0,0.12171591]
[1745802157481,1.97360209,93544.0,93543.0,0.12071591]
[1745802157674,1.28661709,93544.0,93543.0,0.12071591]
[1745802157898,1.22048909,93544.0,93543.0,0.12071591]
[1745802158118,1.21948909,93544.0,93543.0,0.12071591]
[1745802158534,1.21948909,93544.0,93543.0,0.12171591]
[1745802161287,0.87948909,93544.0,93543.0,0.12171591]
[1745802161537,0.19143809,93544.0,93543.0,0.2432983]
[1745802165885,0.16372009,93544.0,93543.0,0.2432983]
[1745802166063,0.00113809,93544.0,93543.0,0.2432983]
[1745802166853,0.00113809,93544.0,93543.0,0.3505383]
[1745802171123,0.00113809,93544.0,93543.0,0.3977383]
[1745802171336,0.00113809,93544.0,93543.0,0.3987383]
[1745802171848,0.00113809,93544.0,93543.0,0.41874414]
[1745802172232,0.00113809,93544.0,93543.0,0.41774414]
[1745802172428,0.00113809,93544.0,93543.0,0.42389979]
[1745802172635,0.00113809,93544.0,93543.0,0.41774414]
[1745802173042,0.00213809,93544.0,93543.0,0.42074414]
[1745802173420,0.00213809,93544.0,93543.0,0.4007383]
[1745802174706,0.00198669,93544.0,93543.0,0.4007383]
[1745802174909,0.00198669,93544.0,93543.0,0.4504383]
[1745802175151,0.0006972,93557.0,93555.0,0.01454085]
[1745802175359,0.0006972,93557.0,93556.0,0.12356811]
[1745802176217,0.0006972,93557.0,93556.0,0.13173666]
[1745802176422,0.0016972,93557.0,93556.0,0.13173666]
[1745802177173,0.0016972,93557.0,93556.0,0.14172325]
[1745802177575,0.0006972,93557.0,93556.0,0.14172325]
[1745802177981,0.0006972,93557.0,93556.0,0.14272325]
[1745802178208,0.0006972,93557.0,93556.0,0.13273666]
[1745802179424,0.0006972,93557.0,93556.0,0.23993666]
[1745802179607,0.0006972,93557.0,93556.0,0.23779954]
[1745802180798,0.0008484,93567.0,93561.0,0.01454085]
[1745802181002,0.0008484,93567.0,93561.0,0.12356813]
[1745802181888,0.0008484,93567.0,93561.0,0.13354684]
[1745802182700,0.0008484,93567.0,93561.0,0.13454684]
[1745802182904,0.2912984,93562.0,93561.0,0.22506885]
[1745802183034,0.6312984,93562.0,93561.0,0.11718322]
[1745802183235,0.6312984,93562.0,93561.0,0.22438322]
[1745802183470,0.61555961,93562.0,93561.0,0.22438322]
[1745802184149,0.60151761,93562.0,93561.0,0.22438322]
[1745802188768,0.60151761,93562.0,93561.0,0.23892407]
[1745802188970,0.16038761,93562.0,93561.0,0.34581421]
[1745802189465,0.00089761,93562.0,93561.0,0.34581421]
[1745802189665,0.00089761,93562.0,93561.0,0.36578205]
[1745802190221,0.00089761,93562.0,93561.0,0.36478205]
[1745802190622,0.00089761,93562.0,93561.0,0.36678205]
[1745802190829,0.00089761,93562.0,93561.0,0.35679918]
[1745802192021,0.00089761,93562.0,93561.0,0.38767946]
[1745802192449,0.00089761,93562.0,93561.0,0.37677179]
[1745802193085,0.004,93569.0,93568.0,0.01454085]
[1745802193314,0.004,93569.0,93568.0,0.17106782]
[1745802193503,0.004,93569.0,93568.0,0.17722347]
[1745802193748,0.004,93569.0,93568.0,0.2010254]
[1745802194794,0.004,93569.0,93568.0,0.2030254]
[1745802195007,0.004,93569.0,93568.0,0.18848455]
[1745802197100,0.004,93569.0,93568.0,0.2030254]
[1745802199011,0.004,93569.0,93568.0,0.20029397]
[1745802201302,0.0115257,93595.0,93573.0,0.10789101]
[1745802201504,0.00130902,93581.0,93574.0,0.2414438]
[1745802201715,0.00130902,93581.0,93576.0,0.01454085]
[1745802201855,0.00130902,93581.0,93578.0,0.01454085]
[1745802202054,0.00130902,93581.0,93580.0,0.01454085]
[1745802202256,0.00130902,93581.0,93580.0,0.13141596]
[1745802202465,0.00130902,93581.0,93580.0,0.15138857]
[1745802203461,0.00130902,93581.0,93580.0,0.15352536]
[1745802203822,0.00130902,93581.0,93580.0,0.25828536]
[1745802204019,0.00130902,93581.0,93580.0,0.25614857]
[1745802204994,0.00130902,93581.0,93580.0,0.2640381]
[1745802207251,0.00130902,93581.0,93580.0,0.37192911]
[1745802215355,0.00130902,93581.0,93580.0,0.35738826]
[1745802216361,0.00130902,93581.0,93580.0,0.34839155]
[1745802217434,0.00130902,93581.0,93580.0,0.3629324]
[1745802220610,1.03597602,93581.0,93580.0,0.14573812]
[1745802220815,1.03597602,93581.0,93580.0,0.01997261]
[1745802221009,1.00989402,93581.0,93580.0,0.01997261]
[1745802221390,0.89808602,93581.0,93580.0,0.01997261]
[1745802221928,0.30702302,93581.0,93580.0,0.01997261]
[1745802222097,0.23665802,93581.0,93580.0,0.12473261]
[1745802222300,0.24065802,93581.0,93580.0,0.10476]
[1745802222872,0.24065802,93581.0,93580.0,0.11278104]
[1745802222873,0.24365802,93581.0,93580.0,0.11278104]
[1745802224479,0.24365802,93581.0,93580.0,0.11038293]
[1745802224805,0.58365802,93581.0,93580.0,0.21827394]
[1745802225017,0.58365802,93581.0,93580.0,0.11591205]
[1745802225221,0.58365802,93581.0,93580.0,0.22067205]
[1745802225429,0.58465802,93581.0,93580.0,0.10789101]
[1745802226687,0.57765802,93581.0,93580.0,0.10789101]
[1745802226891,0.60066803,93581.0,93580.0,0.10789101]
[1745802227737,0.58065802,93581.0,93580.0,0.10789101]
[1745802229005,0.3885,93580.0,93565.0,0.10789101]
[1745802229221,0.0456,93579.0,93565.0,0.10789101]
[1745802229426,0.34,93577.0,93565.0,0.10789101]
[1745802229643,0.515224,93576.0,93567.0,0.01454085]
[1745802229766,0.126897,93575.0,93568.0,0.1090274]
[1745802229986,0.00530902,93581.0,93569.0,0.12456913]
[1745802229987,0.260385,93580.0,93569.0,0.12456913]
[1745802230379,0.260385,93580.0,93570.0,0.21478115]
[1745802230380,0.33229682,93580.0,93570.0,0.21478115]
[1745802230580,0.796158,93579.0,93571.0,0.01454085]
[1745802230790,0.295679,93578.0,93573.0,0.01454085]
[1745802231002,0.00230902,93581.0,93575.0,0.01454085]
[1745802231202,0.00230902,93581.0,93577.0,0.01454085]
[1745802231415,0.00230902,93581.0,93578.0,0.10902693]
[1745802232040,0.00730902,93581.0,93580.0,0.01554085]
[1745802232241,0.00730902,93581.0,93580.0,0.1235678]
[1745802232672,0.00830902,93581.0,93580.0,0.1235678]
[1745802232825,0.00230902,93581.0,93580.0,0.1235678]
[1745802233378,0.00330902,93581.0,93580.0,0.1265678]
[1745802233655,0.00330902,93581.0,93580.0,0.23445881]
[1745802233814,0.00330902,93581.0,93580.0,0.232322]
[1745802235024,0.002,93581.0,93580.0,0.232322]
[1745802235231,0.001,93592.0,93581.0,0.11912284]
[1745802235431,0.001,93592.0,93581.0,0.22814964]
[1745802235630,0.001,93592.0,93581.0,0.22601298]
[1745802236280,0.001,93592.0,93581.0,0.27561298]
[1745802236471,0.001,93592.0,93581.0,0.27661298]
[1745802236827,0.001,93592.0,93581.0,0.27861298]
[1745802236971,0.001,93592.0,93581.0,0.32491298]
[1745802237384,0.0006974,93587.0,93582.0,0.01554085]
[1745802237583,0.0008482,93600.0,93599.0,0.45044085]
[1745802237791,0.000848,93619.0,93601.0,0.01454085]
[1745802237986,0.00098627,93607.0,93606.0,0.17103099]
[1745802238167,0.000848,93619.0,93608.0,0.001]
[1745802238350,0.000848,93619.0,93608.0,0.15683711]
[1745802238553,0.000848,93619.0,93608.0,0.18585675]
[1745802239403,0.000848,93619.0,93608.0,0.18985675]
[1745802239667,0.000848,93619.0,93608.0,0.23615675]
[1745802239949,0.000848,93619.0,93608.0,0.23402109]
[1745802240257,0.000848,93619.0,93608.0,0.24459867]
[1745802240787,0.000848,93619.0,93608.0,0.25267312]
[1745802241410,0.000848,93619.0,93610.0,0.001]
[1745802241622,0.000848,93619.0,93618.0,0.12143099]
[1745802241977,0.000848,93619.0,93618.0,0.12356658]
[1745802242306,0.0507,93649.0,93629.0,0.09888599]
[1745802242512,0.00098642,93638.0,93630.0,0.32625256]
[1745802242717,0.00098642,93638.0,93630.0,0.32411698]
[1745802243756,0.00098642,93638.0,93631.0,0.00213558]
[1745802243965,0.00098642,93638.0,93633.0,0.01454085]
[1745802244140,0.00098642,93638.0,93635.0,0.01454085]
[1745802244488,0.00098642,93638.0,93637.0,0.01454085]
[1745802244695,0.00198642,93638.0,93637.0,0.12143099]
[1745802244897,0.00098642,93638.0,93637.0,0.12143099]
[1745802245101,0.00298642,93638.0,93637.0,0.12143099]
[1745802245254,0.00298642,93638.0,93637.0,0.12356656]
[1745802245456,0.00098642,93638.0,93637.0,0.12356656]
[1745802246258,0.00098642,93638.0,93637.0,0.12143099]
[1745802246938,0.00298642,93638.0,93637.0,0.12143099]
[1745802248309,0.00298642,93638.0,93637.0,0.22031698]
[1745802249054,0.00098642,93638.0,93637.0,0.22031698]
[1745802249297,0.00098642,93638.0,93637.0,0.22839359]
[1745802249506,0.00198642,93638.0,93637.0,0.22839359]
[1745802254409,0.00198642,93638.0,93637.0,0.44198437]
[1745802254930,0.004,93649.0,93642.0,0.09589957]
[1745802255136,0.004,93649.0,93643.0,0.12356628]
[1745802256711,0.004,93649.0,93645.0,0.22811226]
[1745802256712,0.005,93649.0,93645.0,0.22811226]
[1745802256923,0.005,93649.0,93647.0,0.01454085]
[1745802257126,0.005,93649.0,93648.0,0.1235662]
[1745802257312,0.005,93649.0,93648.0,0.21946577]
[1745802257511,0.005,93649.0,93648.0,0.21733056]
[1745802258552,0.004,93649.0,93648.0,0.21733056]
[1745802259136,0.901342,93649.0,93648.0,0.20278971]
[1745802259392,0.765968,93649.0,93648.0,0.20278971]
[1745802259587,0.765968,93649.0,93648.0,0.30966971]
[1745802259588,0.300565,93649.0,93648.0,0.30966971]
[1745802259758,0.300565,93649.0,93648.0,0.30566971]
[1745802260156,0.118636,93649.0,93648.0,0.30966971]
[1745802260359,0.118636,93649.0,93648.0,0.32021056]
[1745802260360,0.004,93649.0,93648.0,0.32021056]
[1745802261743,0.005,93649.0,93648.0,0.32021056]
[1745802261901,0.004,93649.0,93648.0,0.32021056]
[1745802262310,0.004,93649.0,93648.0,0.32121056]
[1745802270906,0.004,93649.0,93648.0,0.36841056]
[1745802272072,0.004,93649.0,93648.0,0.36741056]
[1745802272434,0.004,93649.0,93648.0,0.37041056]
[1745802272637,0.004,93649.0,93648.0,0.36741056]
[1745802272833,0.004,93649.0,93648.0,0.37141056]
[1745802273619,0.004,93649.0,93648.0,0.38186111]
[1745802274504,0.0008482,93656.0,93655.0,0.21354973]
[1745802274676,0.0008482,93656.0,93655.0,0.33711555]
[1745802274873,0.0008482,93656.0,93655.0,0.33498072]
[1745802276075,0.0008482,93656.0,93655.0,0.12343099]
[1745802276302,0.0008482,93656.0,93655.0,0.12556593]
[1745802276501,0.0008482,93656.0,93655.0,0.33911566]
[1745802276735,0.0008482,93656.0,93655.0,0.33698072]
[1745802277955,0.0008482,93656.0,93655.0,0.33498072]
[1745802278171,0.0008482,93656.0,93655.0,0.38638072]
[1745802278981,0.0008482,93656.0,93655.0,0.43518072]
[1745802279225,0.0008482,93656.0,93655.0,0.44513497]
[1745802280233,0.0008482,93656.0,93655.0,0.43518072]
[1745802280630,0.0008482,93656.0,93655.0,0.46504028]
[1745802281020,0.0008482,93656.0,93655.0,0.46304028]
[1745802281226,0.0008482,93656.0,93655.0,0.43618072]
[1745802283380,0.0472,93692.0,93672.0,0.01454085]
[1745802283583,0.00130825,93675.0,93673.0,0.2118648]
[1745802284289,0.00130825,93675.0,93674.0,0.01454085]
[1745802284490,0.00130825,93675.0,93674.0,0.20763416]
[1745802285329,0.00230825,93675.0,93674.0,0.20763416]
[1745802285652,0.00130825,93675.0,93674.0,0.20976882]
[1745802286010,0.00230825,93675.0,93674.0,0.20976882]
[1745802286322,0.00230825,93675.0,93674.0,0.21592447]
[1745802286529,0.00230825,93675.0,93674.0,0.20976882]
[1745802287494,0.00230825,93675.0,93674.0,0.53024882]
[1745802287694,0.00230825,93675.0,93674.0,0.52811416]
[1745802289607,0.00230825,93675.0,93674.0,0.53623686]
[1745802290032,0.00399485,93689.0,93674.0,0.53623686]
[1745802290414,0.282516,93688.0,93676.0,0.01454085]
[1745802290612,0.34,93686.0,93677.0,0.10689014]
[1745802290815,0.34,93684.0,93677.0,0.10284]
[1745802291054,0.045,93681.0,93678.0,0.1028]
[1745802291193,0.34,93679.0,93678.0,0.1028]
[1745802291391,1.70226,93679.0,93678.0,0.1028]
[1745802291801,1.700132,93679.0,93678.0,0.1028]
[1745802292217,1.677718,93679.0,93678.0,0.1028]
[1745802292588,1.568727,93679.0,93678.0,0.1028]
[1745802292852,1.570727,93679.0,93678.0,0.1028]
[1745802293250,1.396579,93679.0,93678.0,0.1028]
[1745802293859,1.396579,93679.0,93678.0,0.10284]
[1745802295058,1.396579,93679.0,93674.0,0.41480587]
[1745802295214,0.0511,93679.0,93678.0,0.10284]
[1745802296141,1.544245,93679.0,93678.0,0.10284]
[1745802296541,1.508181,93679.0,93678.0,0.10284]
[1745802299434,1.508181,93679.0,93674.0,0.41480587]
[1745802299435,0.34,93678.0,93674.0,0.40668317]